Cogmind - Beta 13 X1 @@@ ROGUE MODE // 2023.07.09 @ 20:59:57 Player: tourn Result: Destroyed by G-73 Enforcer with Heavy Laser Performance ------------- Evolutions (8) 4000 Regions Visited (27) 5400 Robots Destroyed (233) 1165 Value Destroyed (11799) 11799 Prototype IDs (73) 1460 Alien Tech Used (4) 800 Bonus (14180) 14180 TOTAL SCORE: 38804 Bonus ------- High Alert Combat Kills 1792 Follower Combat Kills 1621 Met Zhirov 300 Met Warlord at Base 500 MAIN.C Attacked Warlord 500 Built Enhanced Grunts 300 Met R17 at Cetus 500 Found Hidden Lab 3000 Used Core Reset Matrix 3000 Met R17 at Research 2000 Pursued by Intercept 1000 Friendly Fire -333 Cogmind --------- Core Integrity 0/1450 Matter 202/300 Energy 98/100 System Corruption 40% Temperature Cool (80) Movement Rolling (95) Location -2/Section 7 Parts ------- > --- POWER (3) -------- (None) > --- PROPULSION (6) --- Compact Wheel Centrium Wheel > --- UTILITY (11) ----- Long-range Sensor Array Advanced Signal Interpreter Experimental Core Analyzer Armor Integrity Analyzer Advanced Hacking Suite Experimental Hacking Suite Deep Network Scanner > --- WEAPON (4) ------- Phase Gun Enhanced Nova Cannon Vibroblade > --- INVENTORY (5) ---- Experimental Heat Sink Advanced Transmission Jammer Potential Cannon Peak State ------------ > --- POWER ------------ Quantum Reactor Quantum Reactor Quantum Reactor > --- PROPULSION ------- Armored Heavy Treads Biometal Heavy Treads Advanced Heavy Siege Treads > --- UTILITY ---------- Experimental Heat Sink High-capacity Storage Unit Long-range Sensor Array Advanced Signal Interpreter Advanced Targeting Computer Experimental Core Analyzer Armor Integrity Analyzer Centrium Light Armor Plating Advanced Hacking Suite Experimental Hacking Suite Deep Network Scanner > --- WEAPON ----------- Quantum Rifle Enhanced Nova Cannon Enhanced Nova Cannon Railgun > --- INVENTORY -------- Mini Fusion Reactor Enhanced Armored Medium Treads Advanced Cooling System Experimental Energy Well Advanced Transmission Jammer Improved Medium Armor Plating Layered Medium Armor Plating Medium Regenerative Plating High-powered Transdimensional Reconstructor Subatomic Replicator Immobilizer Enhanced Nova Cannon Enhanced Nova Cannon Potential Cannon Linked Autogun Micro-nuke Launcher Guided Remote Datajack Vibroblade [Rating: 199] Favorites ----------- Power Quantum Reactor Engine Light Angular Momentum Engine Power Core Micro Nuclear Core Reactor Quantum Reactor Propulsion Centrium Heavy Treads Treads Centrium Heavy Treads Leg Advanced Myomer Leg Wheel Compact Wheel Hover Unit Combat Gravmag System Flight Unit Nuclear Pulse Thruster Utility Medium Storage Unit Device Advanced Sensor Array Storage Medium Storage Unit Processor Advanced Signal Interpreter Hackware Advanced Hacking Suite Protection Medium Regenerative Plating Weapon Advanced Variable Charge Gun Energy Gun Advanced Variable Charge Gun Energy Cannon Enhanced Nova Cannon Ballistic Gun Railgun Ballistic Cannon Compact Mass Driver Launcher Micro-nuke Launcher Special Weapon Mining Laser Impact Weapon Heavy Mace Slashing Weapon Vibroblade Piercing Weapon Plasma Lance Special Melee Weapon Advanced Datajack Build | -11 -10 -10 -10 -8 -8 -8 -6 -6 -6 -5 -5 -5 -5 -4 -4 -4 -4 -4 -4 -4 -3 -3 -3 -3 -2 -2 -2 ------- Run | Jun Mat Min Sub Mat Sto Rec Fac Ext Cet Fac Upp Upp Zhi Pro Fac Was Fac Upp Upp War Pro Res Arm Lab Res Qua Sec Slots Evolved 16 | . . . . 4 . . 4 . . 2 . . . . 2 . . . . . . 2 . . 2 . . Power 1 | . . . . 1 . . . . . . . . . . . . . . . . . . . . . . . Propulsion 4 | . . . . 2 . . 2 . . . . . . . . . . . . . . . . . . . . Utility 9 | . . . . 1 . . 1 . . 2 . . . . 1 . . . . . . 2 . . 2 . . Weapon 2 | . . . . . . . 1 . . . . . . . 1 . . . . . . . . . . . . Parts Attached 420 | . 19 . 10 13 9 1 3 13 20 7 4 14 7 17 23 . 52 1 1 9 . 14 79 17 58 26 3 Power 34 | . 1 . 2 1 . . 1 1 2 . . . 1 . . . 4 . 1 . . 2 9 1 6 2 . Engine 6 | . 1 . 2 . . . . 1 1 . . . . . . . . . . . . 1 . . . . . Core 6 | . . . . 1 . . 1 . 1 . . . . . . . 2 . 1 . . . . . . . . Reactor 22 | . . . . . . . . . . . . . 1 . . . 2 . . . . 1 9 1 6 2 . Propulsion 72 | . 8 . 3 1 . . . 4 5 . . 2 3 1 6 . 10 . . 2 . 3 16 . 4 3 1 Treads 25 | . 1 . 1 . . . . 3 4 . . 1 . . . . . . . . . 1 8 . 4 2 . Leg 20 | . 5 . . . . . . 1 . . . 1 3 1 . . . . . . . 1 8 . . . . Wheel 9 | . 2 . 2 . . . . . 1 . . . . . 2 . . . . . . . . . . 1 1 Hover 8 | . . . . . . . . . . . . . . . 4 . 4 . . . . . . . . . . Flight 10 | . . . . 1 . . . . . . . . . . . . 6 . . 2 . 1 . . . . . Utility 201 | . 5 . 2 6 5 1 1 5 7 6 4 9 3 14 13 . 24 1 . 4 . 6 25 9 35 16 . Device 125 | . 3 . 1 2 3 1 . 4 4 3 4 8 1 12 11 . 17 1 . 2 . 4 15 4 15 10 . Storage 6 | . 1 . . . . . . . . . . 1 1 . 1 . . . . . . 1 . 1 . . . Processor 23 | . . . . 2 . . . 1 . 2 . . . 1 1 . 2 . . 2 . . 2 . 10 . . Hackware 9 | . . . . . . . . . . . . . . . . . 1 . . . . 1 3 2 2 . . Protection 38 | . 1 . 1 2 2 . 1 . 3 1 . . 1 1 . . 4 . . . . . 5 2 8 6 . Artifact . | . . . . . . . . . . . . . . . . . . . . . . . . . . . . Weapon 113 | . 5 . 3 5 4 . 1 3 6 1 . 3 . 2 4 . 14 . . 3 . 3 29 7 13 5 2 Energy Gun 27 | . . . . 3 1 . 1 1 4 . . . . . . . 5 . . 1 . 1 4 1 4 . 1 Energy Cannon 12 | . . . . . . . . . . . . 1 . . . . . . . . . . 3 2 3 2 1 Ballistic Gun 42 | . 5 . 2 2 1 . . 2 2 1 . 2 . 2 2 . 3 . . . . 2 9 2 4 1 . Ballistic Cannon 6 | . . . . . . . . . . . . . . . . . . . . . . . 5 . 1 . . Launcher 7 | . . . . . . . . . . . . . . . . . 3 . . . . . 3 . . 1 . Special Weapon 5 | . . . 1 . . . . . . . . . . . 1 . . . . 1 . . 1 1 . . . Impact Weapon 2 | . . . . . 2 . . . . . . . . . . . . . . . . . . . . . . Slashing Weapon 9 | . . . . . . . . . . . . . . . 1 . 3 . . 1 . . 2 1 . 1 . Piercing Weapon 1 | . . . . . . . . . . . . . . . . . . . . . . . . . 1 . . Special Melee Weapon 2 | . . . . . . . . . . . . . . . . . . . . . . . 2 . . . . Unidentified Prototypes 53 | . . . . 2 . . 1 . 5 . . 3 5 1 2 . . . . 6 . 2 4 12 8 2 . Corrupted Parts 7 | . . . . . . . . 2 4 . . . . . . . 1 . . . . . . . . . . System Corruption 21 | . . . . . . . . 6 11 . . . . . . . 4 . . . . . . . . . . Parts Lost 102 | . . . 7 1 . . . 7 9 . . 1 . 9 1 . 11 . . . 1 2 19 2 11 21 . Power 20 | . . . 1 . . . . 1 2 . . . . 2 . . 2 . . . . . 6 . 2 4 . Propulsion 24 | . . . 3 . . . . 3 3 . . 1 . 2 . . 2 . . . 1 . 2 . 2 5 . Utility 32 | . . . . . . . . 2 1 . . . . 3 1 . 3 . . . . 2 6 2 4 8 . Weapon 26 | . . . 3 1 . . . 1 3 . . . . 2 . . 4 . . . . . 5 . 3 4 . Highest Loss Streak 16 | . . . 5 1 . . . 6 6 . . 1 . 7 1 . 7 . . . 1 1 5 2 10 16 . To Critical Strikes 3 | . . . . . . . . . 1 . . . . . . . . . . . . . . . . 2 . Average Slot Usage (%) 79 | . 98 100 93 60 71 65 61 67 69 75 76 78 81 78 76 78 89 83 84 88 81 76 77 74 83 84 44 Engine 2 | . 13 14 10 . . . . 2 5 5 5 5 5 2 . . . . . 4 1 . . . . . . Core 2 | . . . . 6 7 7 5 5 5 5 5 5 3 2 4 . 2 5 5 5 5 4 . . . . . Reactor 3 | . . . . . . . . . . . . . 1 2 . 5 4 . . . . . 6 10 11 11 . Treads 6 | . 2 14 5 . . . . 7 16 17 17 16 15 5 . . . . . . . 1 6 . 8 11 . Leg 4 | . 21 . . . . . . . . . . 1 7 16 6 . . . . . . 1 8 13 3 . . Wheel 1 | . 2 14 22 . . . . . 2 . . . . . 1 . . . . . . . . . . . 7 Hover 2 | . . . . . . . . . . . . . . . 12 21 27 . . . . . . . . . . Flight 2 | . . . . 7 7 7 9 6 . . . . . . . . . 31 31 31 27 11 . . . . . Device 13 | . 8 14 7 14 21 21 16 15 10 18 17 16 15 13 16 15 16 20 21 16 10 13 14 3 7 7 4 Storage 5 | . 14 14 14 7 7 7 5 5 6 5 5 5 5 5 5 5 5 5 5 5 5 4 4 4 4 3 . Processor 8 | . . . . 8 7 7 5 3 . 2 5 5 5 4 7 10 5 5 5 9 15 14 14 13 10 16 12 Hackware 4 | . . . . . . . . . . . . . . . . . 2 5 5 5 5 8 2 6 16 13 12 Protection 2 | . 4 . 6 2 7 3 4 . 2 1 . . . 2 1 . 2 . . . . . 1 5 4 2 . Energy Gun 5 | . 2 . . 8 6 7 13 11 7 12 11 11 11 8 5 5 5 10 10 7 5 6 2 1 2 3 . Energy Cannon 1 | . . . . . . . . 1 . . . . . . . . 3 . . . . . 1 1 5 5 3 Ballistic Gun 6 | . 25 28 17 5 6 5 . 4 9 3 5 5 5 7 10 10 6 . . . . 1 7 2 3 5 . Naked Turns . | . . . . . . . . . . . . . . . . . . . . . . . . . . . . Heaviest Build 151 | 13 24 22 22 27 28 27 37 51 59 53 50 52 49 62 63 56 75 32 32 34 34 100 130 138 151 148 25 Greatest Support 240 | 20 20 16 40 30 30 30 39 80 240 240 240 240 188 90 90 56 78 36 36 38 38 90 215 148 235 220 32 Greatest Overweight (x) 7 | . 1 1 1 . . . . 1 3 . . . . . 5 . 2 . . 1 . 1 1 . 1 7 . Average Overweight (x) . | . . 1 . . . . . . . . . . . . . . . . . . . . . . . . . Largest Inventory Capacity 20 | . 10 10 10 10 10 10 10 10 10 10 10 10 10 10 10 10 10 10 10 10 10 20 20 20 20 20 5 Average Capacity 13 | . 8 10 10 10 10 10 10 10 10 10 10 10 10 10 10 10 10 10 10 10 10 14 20 20 20 19 5 Most Carried 20 | . 9 9 10 10 10 10 10 10 10 10 10 10 10 10 10 10 10 10 10 10 10 20 20 20 20 20 5 Average Carried 12 | . 7 9 8 8 9 9 9 9 8 9 10 9 9 9 9 10 9 9 10 9 9 12 18 19 17 18 4 Final Capacity 20 | 8 10 10 10 10 10 10 10 10 10 10 10 10 10 10 10 10 10 10 10 10 10 20 20 20 20 5 5 Final Carried 20 | 6 9 9 10 10 9 10 10 10 9 10 10 10 10 9 10 10 10 10 10 10 10 20 20 20 20 5 4 Scrap Engine Consumption 47 | . . . . . . 11 . 20 . 3 . . . . 6 . 7 . . . . . . . . . . Constructs Created 6 | . . . . . . 1 1 2 . . . . . 1 1 . . . . . . . . . . . . Constructs Modified 11 | . . . . . . . . 5 . . . . . . 2 . 4 . . . . . . . . . . Class Distribution -------------------- 17% | Mutant 12% | Scavenger-Gunner 11% | Scavenger-Mutant 8% | Scavenger-Skirmisher 8% | Gunner 6% | Wizard-Mutant 6% | Hacker-Gunner 5% | Wizard-Gunner 3% | Hacker-Mutant 3% | Scavenger-Tank 3% | Sprinter Dominant Class ---------------- Mutant | -10/Materials Mutant | -10/Mines Mutant | -10/Subcaves Mutant | -8/Materials Mutant | -8/Storage Mutant | -8/Recycling Tank | -6/Factory Scavenger-Gunner | -6/Extension Scavenger-Mutant | -6/Cetus Scavenger-Mutant | -5/Factory Scavenger-Skirmisher | -5/Upper Caves Scavenger-Skirmisher | -5/Upper Caves Scavenger-Skirmisher | -5/Zhirov Gunner | -4/Proximity Caves Skirmisher | -4/Factory Gunner | -4/Waste Mutant | -4/Factory Sprinter | -4/Upper Caves Sprinter | -4/Upper Caves Sprinter | -4/Warlord Scout | -3/Proximity Caves Hacker-Assassin | -3/Research Scavenger-Gunner | -3/Armory Scavenger-Mutant | -3/Lab Wizard-Mutant | -2/Research Hacker-Gunner | -2/Quarantine Hacker-Mutant | -2/Section 7 Resources | -11 -10 -10 -10 -8 -8 -8 -6 -6 -6 -5 -5 -5 -5 -4 -4 -4 -4 -4 -4 -4 -3 -3 -3 -3 -2 -2 -2 ----------- Run | Jun Mat Min Sub Mat Sto Rec Fac Ext Cet Fac Upp Upp Zhi Pro Fac Was Fac Upp Upp War Pro Res Arm Lab Res Qua Sec Matter Collected 8911 | 185 216 177 71 255 268 20 . 218 250 106 34 235 . 484 238 . 1221 87 45 54 143 226 2935 79 878 397 89 Remotely . | . . . . . . . . . . . . . . . . . . . . . . . . . . . . Salvage Created 12224 | . 238 133 71 515 537 . . 590 135 158 . 85 . 1147 264 . 1789 87 . . 163 1143 3133 79 584 1284 89 Parts 537 | . 19 14 7 25 30 . . 29 2 6 . 2 . 37 12 . 83 1 . . 5 43 126 10 22 63 1 Haulers Intercepted 12 | . 2 . . 2 2 . . . . 1 . . . 1 . . 1 . . . . 3 . . . . . Recyclers Shooed 5 | . . 1 . . . . . 1 . . . . . . . . 2 . . . . 1 . . . . . Parts Field Recycled 10 | . 10 . . . . . . . . . . . . . . . . . . . . . . . . . . Retrieved Matter 80 | . 80 . . . . . . . . . . . . . . . . . . . . . . . . . . Parts Self-Destructed 54 | . . . 4 . . . . . . . 12 2 . 36 . . . . . . . . . . . . . Prevented . | . . . . . . . . . . . . . . . . . . . . . . . . . . . . Kills | -11 -10 -10 -10 -8 -8 -8 -6 -6 -6 -5 -5 -5 -5 -4 -4 -4 -4 -4 -4 -4 -3 -3 -3 -3 -2 -2 -2 ------- Run | Jun Mat Min Sub Mat Sto Rec Fac Ext Cet Fac Upp Upp Zhi Pro Fac Was Fac Upp Upp War Pro Res Arm Lab Res Qua Sec Combat Hostiles Destroyed 181 | . 7 3 2 8 6 . . 6 2 1 . 1 . 15 3 . 28 . . . . 3 65 1 9 20 1 Melee 7 | . . . . . . . . . . . . . . . . . 1 . . . . . . 1 4 . 1 Guns 100 | . 7 3 2 8 6 . . 5 2 1 . 1 . 15 2 . 8 . . . . 3 27 . 2 8 . Cannons 43 | . . . . . . . . 1 . . . . . . 1 . 4 . . . . . 26 . 3 8 . AOE 26 | . . . . . . . . . . . . . . . . . 12 . . . . . 11 . . 3 . Classes Destroyed 25 | . 4 2 1 3 . . . 2 . 1 . . . 2 1 . 2 1 . . . 1 4 . 1 . . Worker 11 | . . 1 . . . . . . . . . . . . . . 9 . . . . 1 . . . . . Builder 4 | . . . . 1 . . . . . . . . . . 1 . 1 . . . . 1 . . . . . Tunneler 7 | . . . . . . . . 1 . . . . . . 1 . . . . . . 5 . . . . . Hauler 12 | . 2 . . 2 2 . . . . 1 . . . 1 . . 1 . . . . 3 . . . . . Recycler 8 | . . 1 . . 1 . . 1 . . . . . . . . 2 . . . . 3 . . . . . Mechanic 1 | . . . . . . . . . . . . . . . . . 1 . . . . . . . . . . Operator 4 | . . . . . . . . . . . . . . . 1 . 3 . . . . . . . . . . Drone 2 | . . . . . . . . . . . . . . 1 . . 1 . . . . . . . . . . Watcher 5 | . 1 . . . . . . . . . . . . . . . 1 . . . . 2 . . 1 . . Swarmer 40 | . 6 3 . . . . . . . . . . . 2 . . 13 . . . . . 11 . 5 . . Saboteur 2 | . . . . . . . . . . . . . . . . . . . . . . . 2 . . . . Grunt 45 | . 1 . . 3 3 . . 3 1 . . . . 6 . . 4 . . . . . 19 . 1 3 1 Brawler 2 | . . . . . . . . . . . . . . . . . 1 . . . . . 1 . . . . Duelist 4 | . . . . . . . . . . . . . . 2 . . . . . . . . 2 . . . . Protector 1 | . . . . . . . . . . . . . . . . . . . . . . . 1 . . . . Sentry 29 | . . . . 4 3 . . 2 . . . . . 1 3 . 5 . . . . 2 9 . . . . Demolisher 1 | . . . . . . . . . . . . . . . . . . . . . . . . . 1 . . Specialist 6 | . . . . . . . . . . . . . . . . . . . . . . . 6 . . . . Hunter 11 | . . . . 1 . . . . . . . . . 2 . . 4 . . . . . . . 2 2 . Programmer 23 | . . . . . . . . . . 1 . . . 1 . . . . . . . . 13 . . 8 . Heavy 1 | . . . . . . . . . . . . . . . . . . . . . . . 1 . . . . Behemoth 2 | . . . . . . . . 1 . . . 1 . . . . . . . . . . . . . . . Cetus Guard 1 | . . . . . . . . . 1 . . . . . . . . . . . . . . . . . . Enhanced Grunt 1 | . . . . . . . . . . . . . . 1 . . . . . . . . . . . . . Tracker 5 | . . . . . . . . . . . . . . . . . . . . . . . . . . 5 . Combat Programmer 2 | . . . . . . . . . . . . . . . . . . . . . . . . . . 2 . Striker 1 | . . . . . . . . . . . . . . . . . . . . . . 1 . . . . . Subdweller 2 | . . . 2 . . . . . . . . . . . . . . . . . . . . . . . . Decomposer 3 | . . . . . . . . . . . . . . . . . . 1 . . 2 . . . . . . Samaritan 3 | . . . . . . . . . . . . . . . . . . 1 . . 2 . . . . . . Best Kill Streak 13 | . 3 3 2 2 4 . . 2 1 2 . 1 . 6 1 . 13 . . . . 6 9 1 5 6 1 Combat Bots Only 9 | . 3 3 2 2 4 . . 2 1 1 . 1 . 6 1 . 5 . . . . 2 9 1 5 6 1 Max Kills in Single Turn 5 | . 2 1 1 1 1 . . 1 1 1 . 1 . 2 1 . 5 1 . . 1 1 5 1 1 1 1 Gunslinging 1 | . . . . . . . . . . . . . . . . . . . . . . . 1 . . . . Exploded 5 | . . . . . . . . . . . . . . . . . 4 . . . . . 5 . . 1 . Melee 1 | . . . . . . . . . . . . . . . . . 1 . . . . . . 1 1 . 1 Uniques/NPCs Destroyed 1 | . . . . . . . . . . . . . . . . . . . . . . . . 1 . . . A5 (-3/Lab) Combat | -11 -10 -10 -10 -8 -8 -8 -6 -6 -6 -5 -5 -5 -5 -4 -4 -4 -4 -4 -4 -4 -3 -3 -3 -3 -2 -2 -2 -------- Run | Jun Mat Min Sub Mat Sto Rec Fac Ext Cet Fac Upp Upp Zhi Pro Fac Was Fac Upp Upp War Pro Res Arm Lab Res Qua Sec Damage Taken 32693 | . 253 77 907 581 627 . . 1837 3099 138 19 772 . 1966 318 . 2422 64 . 42 55 787 7974 905 2732 7036 82 Core 3825 | . 38 18 185 72 47 . . 277 390 . . 63 . 132 56 . 337 39 . . 28 145 512 33 229 1142 82 Absorbed by Shields 1994 | . . . . . . . . 220 124 . . 195 . 106 159 . 578 . . . . 73 . 47 492 . . Reduced by Siege Mode 331 | . . . . . . . . . . . . 4 . 126 . . . . . . . . 66 . 5 130 . Redirected to Shielding 164 | . . . 40 . . . . . . . . . . . . . 104 . . . . . 20 . . . . Ignored by Resistances 780 | . . . . . . . . . . . . 162 . 334 4 . . . . . . 163 117 . . . . Regen/Repaired (Parts) 618 | . . . . . . . . 186 . . . . . . . . 43 . . . . . . 57 129 203 . Core Remaining (%) 55 | 100 . . 3 . . 78 . . 21 . . . . 80 . . . . . . 60 . . 43 . . . Volleys Fired 655 | . 35 13 29 36 31 . . 39 20 4 1 29 . 64 22 . 82 5 . . . 9 145 1 30 46 14 Largest 4 | . 2 2 2 2 2 . . 3 3 3 3 3 . 3 4 . 4 2 . . . 3 4 1 4 4 2 Hottest 434 | . 70 46 123 141 89 . . 240 147 195 195 240 . 195 248 . 434 130 . . . 170 318 60 376 369 208 Shots Fired 1611 | . 70 26 44 61 61 . . 108 54 12 3 47 . 147 57 . 206 10 . . . 17 469 3 70 131 15 Gun 1234 | . 70 26 29 61 61 . . 99 54 12 3 47 . 147 52 . 155 10 . . . 17 275 . 39 73 4 Cannon 333 | . . . . . . . . 9 . . . . . . . . 44 . . . . . 182 3 31 53 11 Launcher 19 | . . . . . . . . . . . . . . . . . 7 . . . . . 7 . . 5 . Special 25 | . . . 15 . . . . . . . . . . . 5 . . . . . . . 5 . . . . Kinetic 839 | . 66 26 29 27 30 . . 23 33 4 1 22 . 53 39 . 66 . . . . 8 339 3 23 47 . Thermal 663 | . 4 . 15 34 31 . . 85 21 8 2 25 . 94 18 . 83 . . . . 4 116 . 29 79 15 Explosive 19 | . . . . . . . . . . . . . . . . . 7 . . . . . 7 . . 5 . Electromagnetic 78 | . . . . . . . . . . . . . . . . . 50 10 . . . . . . 18 . . Entropic 7 | . . . . . . . . . . . . . . . . . . . . . . 5 2 . . . . Robot Hit Streak 35 | . 6 5 9 16 6 . . 16 7 3 3 18 . 35 14 . 18 4 . . . 10 31 . 8 34 . Robot Miss Streak 11 | . 5 2 1 3 3 . . 11 5 4 2 5 . 10 4 . 7 3 . . . 1 4 . 3 3 . Penetration Max 1 | . . . . 1 1 . . . . . . . . . . . 1 . . . . . 1 . . . . Secondary Targets 11 | . . . . . 1 . . 2 . 1 . . . 4 . . . . . . . . 3 . . . . Max Gunslinging Chain 2 | . . . . . 1 . . 1 . 1 . . . 1 . . . . . . . . 2 . . . . Shots Hit Robots 1079 | . 42 13 24 43 40 . . 73 39 5 1 31 . 90 34 . 125 5 . . 5 40 318 12 49 87 3 Core Hits 503 | . 13 6 4 21 11 . . 50 35 4 . 5 . 35 13 . 81 3 . . 2 14 139 4 18 43 2 Critical Kills 10 | . . . . . . . . 1 . . . . . 1 . . 1 . . . . . 5 . 1 1 . Critical Parts Destroyed 20 | . . . . . 1 . . . . . . . . 1 2 . 5 . . . . . 9 . 2 . . Critical Strikes 62 | . . . . . 3 . . 2 . . . . . 2 2 . 8 . . . . 2 36 1 5 1 . Burn 10 | . . . . . 2 . . 1 . . . . . . . . . . . . . 1 6 . . . . Meltdown 1 | . . . . . . . . . . . . . . . . . . . . . . . . . . 1 . Destroy 30 | . . . . . . . . 1 . . . . . 2 2 . 7 . . . . . 15 . 3 . . Blast 15 | . . . . . . . . . . . . . . . . . . . . . . . 15 . . . . Corrupt 1 | . . . . . . . . . . . . . . . . . . . . . . . . . 1 . . Smash 1 | . . . . . 1 . . . . . . . . . . . . . . . . . . . . . . Sever 4 | . . . . . . . . . . . . . . . . . 1 . . . . 1 . 1 1 . . Melee Attacks 158 | . . . . . 7 . . . . . . . . . . . 16 . . 1 5 46 37 27 16 . 3 Impact 7 | . . . . . 7 . . . . . . . . . . . . . . . . . . . . . . Slashing 147 | . . . . . . . . . . . . . . . . . 16 . . 1 5 46 33 27 16 . 3 Piercing . | . . . . . . . . . . . . . . . . . . . . . . . . . . . . Sneak Attacks 21 | . . . . . 2 . . . . . . . . . . . . . . . 5 12 2 . . . . Combat Hostiles . | . . . . . . . . . . . . . . . . . . . . . . . . . . . . Follow-up Attacks . | . . . . . . . . . . . . . . . . . . . . . . . . . . . . Damage Inflicted 39129 | . 627 207 257 1020 1037 . . 1701 928 149 28 961 . 2490 904 . 5544 133 . . 523 2719 13565 807 1821 3552 156 Guns 21423 | . 627 207 257 1020 809 . . 1566 928 149 28 961 . 2490 863 . 2662 133 . . . 435 6214 . 715 1359 . Cannons 8168 | . . . . . . . . 135 . . . . . . . . 589 . . . . . 5153 . 691 1600 . Explosions 4882 | . . . . . . . . . . . . . . . . . 2098 . . . . . 2191 . . 593 . Melee 4591 | . . . . . 228 . . . . . . . . . . . 195 . . . 523 2267 . 807 415 . 156 Ramming 24 | . . . . . . . . . . . . . . . . . . . . . . 17 7 . . . . Kinetic 16465 | . 603 207 257 400 489 . . 416 650 60 28 470 . 845 611 . 1282 . . . . 148 8718 . 434 847 . Thermal 11664 | . 24 . . 620 320 . . 1285 278 89 . 491 . 1645 293 . 1195 . . . . 124 2541 . 647 2112 . Explosive 4793 | . . . . . . . . . . . . . . . . . 2009 . . . . . 2191 . . 593 . Electromagnetic 1321 | . . . . . . . . . . . . . . . . . 863 133 . . . . . . 325 . . Impact 228 | . . . . . 228 . . . . . . . . . . . . . . . . . . . . . . Slashing 4363 | . . . . . . . . . . . . . . . . . 195 . . . 523 2267 . 807 415 . 156 Piercing . | . . . . . . . . . . . . . . . . . . . . . . . . . . . . Entropic 271 | . . . . . . . . . . . . . . . . . . . . . . 163 108 . . . . Highest Corruption 40 | . . . . . . . . 6 17 . . . . 1 . . 8 8 8 8 . . 13 13 . 40 40 Average Corruption 10 | . . . . . . . . 5 10 . . . . 1 . . 4 8 8 8 . . 8 11 . 13 40 Corruption Purged . | . . . . . . . . . . . . . . . . . . . . . . . . . . . . Corruption Blocked 44 | . . . . . . . . . . . . . . . . . . . . . . . 44 . . . . Effects 180 | . . . . . . . . 8 18 . . . . . . . 14 3 4 1 . . 60 19 . 29 24 Message Errors 35 | . . . . . . . . 2 . . . . . . . . 4 1 . . . . 11 5 . 9 3 Matter Fused 34 | . . . . . . . . 2 4 . . . . . . . 4 . 2 . . . 9 3 . 2 8 Heat Flow Errors 23 | . . . . . . . . . 2 . . . . . . . . 1 1 . . . 10 1 . 5 3 Energy Discharges 22 | . . . . . . . . . 1 . . . . . . . 2 . 1 . . . 8 3 . 4 3 Parts Rejected 5 | . . . . . . . . . 1 . . . . . . . . . . . . . 4 . . . . Parts Fused 1 | . . . . . . . . . . . . . . . . . . . . 1 . . . . . . . Data Loss (minor) 21 | . . . . . . . . 3 2 . . . . . . . 1 . . . . . 5 4 . 4 2 Data Loss (major) 6 | . . . . . . . . . 2 . . . . . . . 1 . . . . . 1 1 . 1 . Misfires 5 | . . . . . . . . 1 2 . . . . . . . . . . . . . . 2 . . . Alerts 9 | . . . . . . . . . . . . . . . . . . 1 . . . . 5 . . 1 2 Misdirections 5 | . . . . . . . . . 2 . . . . . . . . . . . . . 3 . . . . Weapon Failures 14 | . . . . . . . . . 2 . . . . . . . 2 . . . . . 4 . . 3 3 Overload Shots 10 | . . . . . . . . . . . . 4 . . . . 6 . . . . . . . . . . Effects 1 | . . . . . . . . . . . . 1 . . . . . . . . . . . . . . . Heat Surge 1 | . . . . . . . . . . . . 1 . . . . . . . . . . . . . . . Overflow Damage 1760 | . . . . . 208 . . . . . . . . . . . 180 . . . 241 716 251 13 47 104 . Projectiles 287 | . . . . . . . . . . . . . . . . . . . . . . . 179 . 4 104 . Explosions 252 | . . . . . . . . . . . . . . . . . 180 . . . . . 72 . . . . Melee 1221 | . . . . . 208 . . . . . . . . . . . . . . . 241 716 . 13 43 . . Knockbacks 39 | . . . . . . . . . . . . . . . . . 2 . . . . . 37 . . . . Impact . | . . . . . . . . . . . . . . . . . . . . . . . . . . . . Kinetic 38 | . . . . . . . . . . . . . . . . . 2 . . . . . 36 . . . . Secondary 1 | . . . . . . . . . . . . . . . . . . . . . . . 1 . . . . Self-Inflicted Damage 682 | . . . . . . . . . . . . . . . . . 369 . . . . . 271 . . 42 . Shots 13 | . . . . . . . . . . . . . . . . . 7 . . . . . 5 . . 1 . Rammed 1 | . . . . . . . . . . . . . . . . . . . . . . . 1 . . . . Targets Rammed 2 | . . . . . . . . . . . . . . . . . . . . . . 1 1 . . . . Kicked 1 | . . . . . . . . . . . . . . . . . . . . . . 1 . . . . . Crushed . | . . . . . . . . . . . . . . . . . . . . . . . . . . . . Highest Temperature 864 | . 70 . . 337 244 . . 426 339 234 117 387 . 460 324 . 424 189 155 . . 72 370 204 612 864 120 Average Temperature 114 | . 21 . . 138 81 . . 146 150 110 58 147 . 144 100 . 105 68 83 . . 32 101 105 86 159 40 Received Heat Transfer 5876 | . 36 . 264 234 306 . . 356 1097 . 9 292 . 297 16 . 332 . . 21 9 262 1713 4 90 529 9 Effects 54 | . . . . . . . . 1 1 . . 4 . 9 3 . . . . . . . 1 . 15 20 . Shutdowns 25 | . . . . . . . . 1 . . . 2 . 4 1 . . . . . . . 1 . 6 10 . Energy Bleed 4 | . . . . . . . . . 1 . . 2 . 1 . . . . . . . . . . . . . Interference 20 | . . . . . . . . . . . . . . 4 2 . . . . . . . . . 8 6 . Damage (minor) 1 | . . . . . . . . . . . . . . . . . . . . . . . . . 1 . . Damage (major) 3 | . . . . . . . . . . . . . . . . . . . . . . . . . . 3 . Damage (core) 1 | . . . . . . . . . . . . . . . . . . . . . . . . . . 1 . Siege Activations 19 | . . . . . . . . . . . . 2 . 2 . . . . . . . . 6 . 1 8 . Total Turns 256 | . . . . . . . . . . . . 28 . 58 . . . . . . . . 52 . 28 90 . Longest Duration 46 | . . . . . . . . . . . . 22 . 46 . . . . . . . . 18 . 28 22 . Robots Corrupted 2 | . . . . . . . . . . . . . . . . . 2 . . . . . . . . . . Combat Hostiles 2 | . . . . . . . . . . . . . . . . . 2 . . . . . . . . . . Parts Fried 14 | . . . . . 3 . . . . . . . . . . . 8 1 . . . . . . 2 . . Impact Corruptions 3 | . . . . . 3 . . . . . . . . . . . . . . . . . . . . . . Robots Melted 3 | . . . . . . . . . . . . . . . . . 1 . . . . . 1 . . 1 . Combat Hostiles 3 | . . . . . . . . . . . . . . . . . 1 . . . . . 1 . . 1 . Parts Melted 32 | . . . 2 4 . . . 1 . 1 . . . . 2 . 3 . . . . 1 9 . 2 7 . Heat Transferred 15585 | . 74 . . 1319 740 . . 1517 444 111 . 592 . 2146 536 . 2420 . . . . 222 3070 . 555 1839 . Parts Sabotaged . | . . . . . . . . . . . . . . . . . . . . . . . . . . . . Parts Stolen . | . . . . . . . . . . . . . . . . . . . . . . . . . . . . Parts Stripped . | . . . . . . . . . . . . . . . . . . . . . . . . . . . . Power Chain Reactions 2 | . . . . . . . . . . . . . . . . . 2 . . . . . . . . . . Missiles Intercepted . | . . . . . . . . . . . . . . . . . . . . . . . . . . . . Alert | -11 -10 -10 -10 -8 -8 -8 -6 -6 -6 -5 -5 -5 -5 -4 -4 -4 -4 -4 -4 -4 -3 -3 -3 -3 -2 -2 -2 ------- Run | Jun Mat Min Sub Mat Sto Rec Fac Ext Cet Fac Upp Upp Zhi Pro Fac Was Fac Upp Upp War Pro Res Arm Lab Res Qua Sec Peak Influence 1534 | . 204 95 . 383 408 159 12 287 335 103 . . . . 693 179 1198 . . . . 244 1534 . 173 339 243 Initial 600 | . . . . 28 110 159 3 5 74 79 . . . . 600 154 125 . . . . 9 14 . . . 101 Average 263 | . 44 76 . 206 244 110 9 177 155 53 . . . . 635 163 468 . . . . 89 632 . 53 150 140 Maximum Alert Level 4 | . 1 . . 1 2 . . 1 1 . . . . . 2 . 4 . . . . 1 4 . . 1 1 Low Security (%) 62 | . 96 100 . 37 50 100 100 52 79 100 . . . . . 100 29 . . . . 85 22 . 100 63 95 Level 1 17 | . 3 . . 62 40 . . 47 20 . . . . . . . 10 . . . . 14 22 . . 36 4 Level 2 11 | . . . . . 8 . . . . . . . . . 100 . 44 . . . . . 17 . . . . Level 3 4 | . . . . . . . . . . . . . . . . . 6 . . . . . 19 . . . . Level 4 4 | . . . . . . . . . . . . . . . . . 8 . . . . . 18 . . . . Level 5 . | . . . . . . . . . . . . . . . . . . . . . . . . . . . . High Security . | . . . . . . . . . . . . . . . . . . . . . . . . . . . . Max Security . | . . . . . . . . . . . . . . . . . . . . . . . . . . . . Squads Dispatched 47 | . . . . 7 . . 1 3 . 1 . . . . 1 . 7 . . . . 4 10 . 1 12 . Investigation 9 | . . . . . . . 1 1 . . . . . . . . 2 . . . . 4 . . . 1 . Extermination 11 | . . . . . . . . . . 1 . . . . 1 . 1 . . . . . 6 . . 2 . Reinforcement 11 | . . . . 4 . . . 2 . . . . . . . . 1 . . . . . 2 . . 2 . Assault 4 | . . . . . . . . . . . . . . . . . 2 . . . . . 2 . . . . Garrison 4 | . . . . 3 . . . . . . . . . . . . 1 . . . . . . . . . . Intercept 8 | . . . . . . . . . . . . . . . . . . . . . . . . . 1 7 . Searches Triggered 1 | . . . . . . . . . . . . . . . 1 . . . . . . . . . . . . Construction Impeded 3 | . . . . 1 . . . 1 . . . . . . . . 1 . . . . . . . . . . Haulers Reinforced . | . . . . . . . . . . . . . . . . . . . . . . . . . . . . Active Scanning Responses . | . . . . . . . . . . . . . . . . . . . . . . . . . . . . Cargo Convoy Interrupts . | . . . . . . . . . . . . . . . . . . . . . . . . . . . . Stealth | -11 -10 -10 -10 -8 -8 -8 -6 -6 -6 -5 -5 -5 -5 -4 -4 -4 -4 -4 -4 -4 -3 -3 -3 -3 -2 -2 -2 --------- Run | Jun Mat Min Sub Mat Sto Rec Fac Ext Cet Fac Upp Upp Zhi Pro Fac Was Fac Upp Upp War Pro Res Arm Lab Res Qua Sec Distress Signals 28 | . 2 . . . 1 . . 2 2 . . . . . . . 4 . . . . 4 3 . 8 2 . Communications Jammed 52 | . . . . . . . . . . . . . . . . . . . . . . . . . 52 . . Distress Signals 52 | . . . . . . . . . . . . . . . . . . . . . . . . . 52 . . Times Spotted 375 | . 13 3 5 25 10 . . 30 17 2 4 1 . 19 4 4 64 . 1 9 1 16 97 4 14 28 4 Peak Tracking Total 15 | . 4 3 3 15 5 . . 7 8 2 4 1 . 6 2 4 10 . 1 8 1 9 11 3 5 7 6 Tactical Retreats 23 | . . . 1 . . . . 3 . . . . . . . . 6 . 1 . 1 . 9 . . 1 1 Traps | -11 -10 -10 -10 -8 -8 -8 -6 -6 -6 -5 -5 -5 -5 -4 -4 -4 -4 -4 -4 -4 -3 -3 -3 -3 -2 -2 -2 ------- Run | Jun Mat Min Sub Mat Sto Rec Fac Ext Cet Fac Upp Upp Zhi Pro Fac Was Fac Upp Upp War Pro Res Arm Lab Res Qua Sec Traps Triggered 13 | . 5 . . . . . . . . . . . . . 1 . . 1 . . . . 6 . . . . Indirectly . | . . . . . . . . . . . . . . . . . . . . . . . . . . . . Trap Hack Attempts . | . . . . . . . . . . . . . . . . . . . . . . . . . . . . Triggered . | . . . . . . . . . . . . . . . . . . . . . . . . . . . . Disarmed . | . . . . . . . . . . . . . . . . . . . . . . . . . . . . Reprogrammed 6 | . . . . . . . . . . . . . . . . . . . . . . . . . . 6 . Reused . | . . . . . . . . . . . . . . . . . . . . . . . . . . . . Traps Extracted . | . . . . . . . . . . . . . . . . . . . . . . . . . . . . Installed . | . . . . . . . . . . . . . . . . . . . . . . . . . . . . Triggered 5 | . . . . . . . . . . . . . . . . . . . . 5 . . . . . . . Machines | -11 -10 -10 -10 -8 -8 -8 -6 -6 -6 -5 -5 -5 -5 -4 -4 -4 -4 -4 -4 -4 -3 -3 -3 -3 -2 -2 -2 ---------- Run | Jun Mat Min Sub Mat Sto Rec Fac Ext Cet Fac Upp Upp Zhi Pro Fac Was Fac Upp Upp War Pro Res Arm Lab Res Qua Sec Machines Disabled 31 | . . 1 1 . 2 . . . 1 . . . . . . . 10 . . 1 . . 7 5 1 2 . Max in Single Turn 4 | . . 1 1 . 1 . . . 1 . . . . . . . 4 . . 1 . . 1 1 1 1 . Garrison Access 7 | . . . . . 1 . . . . . . . . . 1 . 3 . . . . . . . 1 1 . Energy Cycler 1 | . . . . . . . . . . . . . . . . . . . . . . . 1 . . . . Machines Repaired . | . . . . . . . . . . . . . . . . . . . . . . . . . . . . Machines Sabotaged . | . . . . . . . . . . . . . . . . . . . . . . . . . . . . Overloaded Fab Kills . | . . . . . . . . . . . . . . . . . . . . . . . . . . . . Hacking | -11 -10 -10 -10 -8 -8 -8 -6 -6 -6 -5 -5 -5 -5 -4 -4 -4 -4 -4 -4 -4 -3 -3 -3 -3 -2 -2 -2 --------- Run | Jun Mat Min Sub Mat Sto Rec Fac Ext Cet Fac Upp Upp Zhi Pro Fac Was Fac Upp Upp War Pro Res Arm Lab Res Qua Sec Machines Accessed 87 | . 4 . 1 2 5 1 3 10 . 3 . 1 5 . 2 . 13 2 1 3 1 3 10 2 1 12 2 Terminals 64 | . 4 . . 2 4 1 3 10 . 3 . . . . 1 . 8 . 1 . 1 3 9 . 1 11 2 Fabricators 2 | . . . . . . . . . . . . . . . . . 1 . . . . . 1 . . . . Repair Stations . | . . . . . . . . . . . . . . . . . . . . . . . . . . . . Recycling Units 1 | . . . . . . . . . . . . . . . . . 1 . . . . . . . . . . Scanalyzers . | . . . . . . . . . . . . . . . . . . . . . . . . . . . . Garrison Access 6 | . . . . . 1 . . . . . . . . . 1 . 3 . . . . . . . . 1 . Total Hacks 221 | . 11 . 1 11 8 2 10 22 . 5 . 1 18 . 5 . 41 4 1 4 1 10 17 20 5 20 4 Successful 120 | . 3 . 1 7 4 1 3 7 . 1 . 1 18 . 2 . 12 4 1 4 1 2 7 20 4 14 3 Failed 101 | . 8 . . 4 4 1 7 15 . 4 . . . . 3 . 29 . . . . 8 10 . 1 6 1 Catastrophic 22 | . 1 . . . 3 . 1 5 . . . . . . . . 4 . . . . 1 4 . . 3 . Database Lockouts . | . . . . . . . . . . . . . . . . . . . . . . . . . . . . Manual 91 | . 10 . . 10 5 . 4 . 1 4 . . . . 2 . 21 . . . . 8 5 7 3 8 3 Terminals 148 | . 11 . . 11 7 2 10 22 . 5 . . . . 2 . 26 . 1 . 1 10 13 . 5 18 4 Fabricators 10 | . . . . . . . . . . . . . . . . . 6 . . . . . 4 . . . . Repair Stations . | . . . . . . . . . . . . . . . . . . . . . . . . . . . . Recycling Units 1 | . . . . . . . . . . . . . . . . . 1 . . . . . . . . . . Scanalyzers . | . . . . . . . . . . . . . . . . . . . . . . . . . . . . Garrison Access 14 | . . . . . 1 . . . . . . . . . 3 . 8 . . . . . . . . 2 . Terminal Hacks 97 | . 2 . 1 5 2 1 2 7 . 1 . 1 18 . . . 4 4 1 4 1 1 3 20 3 13 3 Record 37 | . . . . . . . . . . . . . 6 . . . . 3 1 2 1 . . 20 1 3 . Part Schematic 4 | . . . . . . . . . . . . . 4 . . . . . . . . . . . . . . Robot Analysis 4 | . . . . . . . . . . . . . 4 . . . . . . . . . . . . . . Prototype ID Bank 6 | . . . . . . . 1 . . . . . 4 . . . . . . . . . . . . 1 . Open Door 13 | . . . . . 1 . . 7 . . . 1 . . . . . 1 . 2 . . 1 . . . . Open DSF 1 | . . . . . . . . . . 1 . . . . . . . . . . . . . . . . . Level Access Points 2 | . . . . . . . . . . . . . . . . . . . . . . . . . . 1 1 Branch Access Points 7 | . 1 . . 1 . . . . . . . . . . . . 1 . . . . 1 1 . 1 1 . Terminal Index 1 | . . . . . . . . . . . . . . . . . . . . . . . . . . 1 . Alert Level 1 | . . . . . . . . . . . . . . . . . . . . . . . . . 1 . . Unreport Threat 5 | . 1 . . 1 . 1 . . . . . . . . . . 2 . . . . . . . . . . Locate Traps 2 | . . . . 1 . . . . . . . . . . . . . . . . . . . . . 1 . Reprogram Traps 1 | . . . . . . . . . . . . . . . . . . . . . . . . . . 1 . Recall Investigation 2 | . . . . . . . 1 . . . . . . . . . . . . . . . . . . 1 . Recall Reinforcements 3 | . . . . 1 . . . . . . . . . . . . . . . . . . . . . 2 . Zone Layout 7 | . . . . 1 1 . . . . . . . . . . . 1 . . . . . 1 . . 1 2 Derelict Proto ID Bank 1 | . . . 1 . . . . . . . . . . . . . . . . . . . . . . . . Fabricator Hacks 6 | . . . . . . . . . . . . . . . . . 2 . . . . . 4 . . . . Load Schematic 3 | . . . . . . . . . . . . . . . . . 1 . . . . . 2 . . . . Build 3 | . . . . . . . . . . . . . . . . . 1 . . . . . 2 . . . . Repair Station Hacks . | . . . . . . . . . . . . . . . . . . . . . . . . . . . . Recycling Unit Hacks . | . . . . . . . . . . . . . . . . . . . . . . . . . . . . Scanalyzer . | . . . . . . . . . . . . . . . . . . . . . . . . . . . . Garrison Access Hacks 5 | . . . . . 1 . . . . . . . . . 1 . 2 . . . . . . . . 1 . Seal Access 5 | . . . . . 1 . . . . . . . . . 1 . 2 . . . . . . . . 1 . Unauthorized Hacks 11 | . 1 . . 1 1 . 1 . . . . . . . 1 . 4 . . . . 1 . . 1 . . Terminals 10 | . 1 . . 1 1 . 1 . . . . . . . 1 . 3 . . . . 1 . . 1 . . Track 1 | . . . . . . . . . . . . . . . . . 1 . . . . . . . . . . Botnet 9 | . 1 . . 1 1 . 1 . . . . . . . 1 . 2 . . . . 1 . . 1 . . Fabricators . | . . . . . . . . . . . . . . . . . . . . . . . . . . . . Repair Stations . | . . . . . . . . . . . . . . . . . . . . . . . . . . . . Recycling Units . | . . . . . . . . . . . . . . . . . . . . . . . . . . . . Scanalyzers . | . . . . . . . . . . . . . . . . . . . . . . . . . . . . Garrison Access 1 | . . . . . . . . . . . . . . . . . 1 . . . . . . . . . . Jam 1 | . . . . . . . . . . . . . . . . . 1 . . . . . . . . . . Data Cores Recovered 3 | . . . . . . . . . . . . . . . 1 . 2 . . . . . . . . . . Used 1 | . . . . . . . . . . . . . . . . . 1 . . . . . . . . . . Hacking Detections 57 | . 3 . . 2 3 1 3 6 . 3 . . . . 2 . 10 . 1 . 1 3 7 . 1 9 2 Full Trace Events 3 | . . . . . . . 1 1 . . . . . . . . 1 . . . . . . . . . . Feedback Events . | . . . . . . . . . . . . . . . . . . . . . . . . . . . . Feedback Blocked . | . . . . . . . . . . . . . . . . . . . . . . . . . . . . Robot Schematics Acquired . | . . . . . . . . . . . . . . . . . . . . . . . . . . . . Robots Built . | . . . . . . . . . . . . . . . . . . . . . . . . . . . . Authchips . | . . . . . . . . . . . . . . . . . . . . . . . . . . . . Time . | . . . . . . . . . . . . . . . . . . . . . . . . . . . . Total Robot Build Rating . | . . . . . . . . . . . . . . . . . . . . . . . . . . . . Part Schematics Acquired 4 | . . . . . . . . . . . . . 4 . . . . . . . . . . . . . . Parts Built 2 | . . . . . . . . . . . . . . . . . . . . . . . 2 . . . . Authchips 2 | . . . . . . . . . . . . . . . . . . . . . . . 2 . . . . Time 305 | . . . . . . . . . . . . . . . . . 187 . . . . . 118 . . . . Total Part Build Rating 13 | . . . . . . . . . . . . . . . . . . . . . . . 13 . . . . Parts Repaired . | . . . . . . . . . . . . . . . . . . . . . . . . . . . . Time . | . . . . . . . . . . . . . . . . . . . . . . . . . . . . Parts Recycled . | . . . . . . . . . . . . . . . . . . . . . . . . . . . . Recycled Matter . | . . . . . . . . . . . . . . . . . . . . . . . . . . . . Retrieved Matter . | . . . . . . . . . . . . . . . . . . . . . . . . . . . . Retrieved Components . | . . . . . . . . . . . . . . . . . . . . . . . . . . . . Parts Scanalyzed . | . . . . . . . . . . . . . . . . . . . . . . . . . . . . Part Schematics Acquired . | . . . . . . . . . . . . . . . . . . . . . . . . . . . . Parts Damaged . | . . . . . . . . . . . . . . . . . . . . . . . . . . . . Bothacking | -11 -10 -10 -10 -8 -8 -8 -6 -6 -6 -5 -5 -5 -5 -4 -4 -4 -4 -4 -4 -4 -3 -3 -3 -3 -2 -2 -2 ------------ Run | Jun Mat Min Sub Mat Sto Rec Fac Ext Cet Fac Upp Upp Zhi Pro Fac Was Fac Upp Upp War Pro Res Arm Lab Res Qua Sec Used RIF Installer . | . . . . . . . . . . . . . . . . . . . . . . . . . . . . Robots Hacked 1 | . . . . . . . . . . . . . . . . . . . . . . . 1 . . . . Non-combat . | . . . . . . . . . . . . . . . . . . . . . . . . . . . . Combat . | . . . . . . . . . . . . . . . . . . . . . . . . . . . . Robot Hacks Applied . | . . . . . . . . . . . . . . . . . . . . . . . . . . . . Manual 1 | . . . . . . . . . . . . . . . . . . . . . . . 1 . . . . Relay Couplers Released 13 | . . . . . . . . . . . . . . . . . . . . . . 3 . . 10 . . Machine Destruction 2 | . . . . . . . . . . . . . . . . . . . . . . . . . 2 . . Programmers 11 | . . . . . . . . . . . . . . . . . . . . . . 3 . . 8 . . Fabnet Peak Effective % . | . . . . . . . . . . . . . . . . . . . . . . . . . . . . Robots Rewired 9 | . . . . . . . . 4 . . . . . . . . . . . . . . 5 . . . . Allies Hacked 1 | . . . . . . . . . . . . . . . . . . . . . . . 1 . . . . Hacks Repelled . | . . . . . . . . . . . . . . . . . . . . . . . . . . . . Allies | -11 -10 -10 -10 -8 -8 -8 -6 -6 -6 -5 -5 -5 -5 -4 -4 -4 -4 -4 -4 -4 -3 -3 -3 -3 -2 -2 -2 -------- Run | Jun Mat Min Sub Mat Sto Rec Fac Ext Cet Fac Upp Upp Zhi Pro Fac Was Fac Upp Upp War Pro Res Arm Lab Res Qua Sec Total Allies 24 | . . . . . . . . 12 5 . . . . . . 1 . . . . . . 6 . . . . Largest Group 11 | . . . . . . . . 11 3 3 3 3 1 1 . 1 . . . . . . 3 . . . . Highest-Rated Group 448 | . . . . . . . . 448 288 281 281 281 96 96 . 46 . . . . . . 144 . . . . Highest-Rated Ally 159 | . . . . . . . . 159 143 96 96 96 96 96 . 46 . . . . . . 116 . . . . Total Orders 22 | . . . . . . . . . 1 . 9 9 . . . . . . . . . . 3 . . . . ROAM 4 | . . . . . . . . . . . 3 1 . . . . . . . . . . . . . . . FOLLOW 1 | . . . . . . . . . . . . 1 . . . . . . . . . . . . . . . AID 1 | . . . . . . . . . 1 . . . . . . . . . . . . . . . . . . EXPLORE 10 | . . . . . . . . . . . 4 5 . . . . . . . . . . 1 . . . . RETURN 6 | . . . . . . . . . . . 2 2 . . . . . . . . . . 2 . . . . Ally Attacks 209 | . . . . . . . . 77 62 6 12 4 . 11 . 1 . . . . . . 36 . . . . Total Damage 7218 | . . . . . . . . 2337 2511 289 444 146 . 329 . 38 . . . . . . 1124 . . . . Kills 42 | . . . . . . . . 20 12 1 4 . . 1 . . . . . . . . 4 . . . . Allies Corrupted 1 | . . . . . . . . . . . . . . . . . . . . . . . 1 . . . . Allies Melted . | . . . . . . . . . . . . . . . . . . . . . . . . . . . . Intel | -11 -10 -10 -10 -8 -8 -8 -6 -6 -6 -5 -5 -5 -5 -4 -4 -4 -4 -4 -4 -4 -3 -3 -3 -3 -2 -2 -2 ------- Run | Jun Mat Min Sub Mat Sto Rec Fac Ext Cet Fac Upp Upp Zhi Pro Fac Was Fac Upp Upp War Pro Res Arm Lab Res Qua Sec Robot Analysis Total 4 | . . . . . . . . . . . . . 4 . . . . . . . . . . . . . . Derelict Logs Recovered 6 | . . 1 . . . . . . . . 2 . . 1 . . . 1 1 . . . . . . . . Drone Launches 15 | . . . . . . . . . . . 5 5 . . . . . . . . . . 5 . . . . Drone Recoveries 12 | . . . . . . . . . . . 3 5 . . . . . . . . . . 4 . . . . Exploration | -11 -10 -10 -10 -8 -8 -8 -6 -6 -6 -5 -5 -5 -5 -4 -4 -4 -4 -4 -4 -4 -3 -3 -3 -3 -2 -2 -2 ------------- Run | Jun Mat Min Sub Mat Sto Rec Fac Ext Cet Fac Upp Upp Zhi Pro Fac Was Fac Upp Upp War Pro Res Arm Lab Res Qua Sec Turns Passed 16735 | . 802 391 398 367 295 165 96 818 455 702 422 947 256 1215 415 50 1294 156 158 226 138 985 2293 533 1446 1318 394 Spaces Moved 13575 | 1 515 300 264 419 331 312 151 688 206 409 248 499 162 596 338 63 1440 403 482 692 475 1616 1109 325 767 664 100 Core . | . . . . . . . . . . . . . . . . . . . . . . . . . . . . Treads 3148 | . . . 17 . . . . 173 186 409 248 499 114 6 . . . . . . . . 316 . 567 613 . Legs 2655 | 1 378 . . . . . . . . . . . 48 590 22 . . . . . . 298 793 325 200 . . Wheels 927 | . 137 300 247 . . . . . 20 . . . . . 72 . . . . . . . . . . 51 100 Hover 1720 | . . . . . . . . . . . . . . . 244 63 1413 . . . . . . . . . . Flight 5125 | . . . . 419 331 312 151 515 . . . . . . . . 27 403 482 692 475 1318 . . . . . Fastest Speed 23 | 120 80 115 95 40 40 40 40 53 145 160 160 160 120 120 71 71 25 25 25 23 23 26 115 123 123 90 90 Average Speed 89 | 120 124 115 100 40 40 40 50 80 158 160 160 160 148 120 85 71 55 25 25 24 25 47 139 123 150 160 94 Slowest Speed 250 | 120 190 115 160 40 40 40 53 240 160 160 160 160 160 160 155 71 191 25 25 105 26 250 246 123 220 230 95 Overloaded Moves . | . . . . . . . . . . . . . . . . . . . . . . . . . . . . Propulsion Burnouts . | . . . . . . . . . . . . . . . . . . . . . . . . . . . . Robots Hopped 39 | . . . . 7 5 3 . 12 . . . . . . . . . . 1 1 . 10 . . . . . Cave-ins Triggered . | . . . . . . . . . . . . . . . . . . . . . . . . . . . . Teleports 1 | . . . . . . . . . . . . . . . . . . . . . . . 1 . . . . Exploration Rate (%) 51 | 2 83 52 20 41 48 52 4 65 68 9 73 77 62 61 9 56 40 63 69 93 80 38 74 97 30 71 6 Regions Visited 27 Branch Regions 18 Pre-discovered Areas 7 | . . 2 . . . . . . . . 1 . 3 . . . . . 1 . . . . . . . . Known Exits Taken 18 | . 1 . . 1 . . . . 1 1 1 1 1 1 . . 1 1 1 1 1 1 1 1 1 1 . Unknown Exits Taken 7 | 1 . 1 1 . 1 1 1 1 . . . . . . . . . . . . . . . . . . . Scrap Searched 14 | . . . . . . . . . . . 2 3 . 3 . . . 1 3 . 2 . . . . . . Spaces Dug 58 | . . . . . . . . . . . . 6 . 8 2 . 12 . . . . 12 2 . 2 2 12 Terrain Destroyed 648 | . . . . . . . . . 6 4 1 13 . 39 15 . 194 . . . . 13 261 . 16 74 12 Melee 24 | . . . . . . . . . . . . . . . . . 10 . . . . 12 2 . . . . Projectile 290 | . . . . . . . . . 6 4 1 13 . 39 15 . 20 . . . . 1 150 . 16 13 12 AOE 333 | . . . . . . . . . . . . . . . . . 164 . . . . . 108 . . 61 . Terrain Rammed . | . . . . . . . . . . . . . . . . . . . . . . . . . . . . Walls Destroyed . | . . . . . . . . . . . . . . . . . . . . . . . . . . . . Machines Disabled . | . . . . . . . . . . . . . . . . . . . . . . . . . . . . Actions | -11 -10 -10 -10 -8 -8 -8 -6 -6 -6 -5 -5 -5 -5 -4 -4 -4 -4 -4 -4 -4 -3 -3 -3 -3 -2 -2 -2 --------- Run | Jun Mat Min Sub Mat Sto Rec Fac Ext Cet Fac Upp Upp Zhi Pro Fac Was Fac Upp Upp War Pro Res Arm Lab Res Qua Sec Total 16649 | . 609 320 319 546 417 350 169 857 288 453 269 603 178 973 417 67 1742 447 517 745 484 1746 1529 417 989 822 376 Wait 1501 | . 22 8 13 73 34 35 15 91 30 12 17 53 . 283 9 5 127 37 35 35 2 46 108 20 63 72 256 Move 13476 | . 514 299 263 408 320 305 150 664 205 408 247 498 161 595 338 62 1439 402 479 689 474 1595 1108 324 766 663 100 Hop 34 | . . . . 3 5 3 . 11 . . . . . . . . . . 1 1 . 10 . . . . . Pick Up 115 | . 6 . 2 5 3 2 . 6 5 10 . 2 1 7 6 . 3 1 . 1 1 14 16 8 9 7 . Fast Attach 216 | . 12 . 3 9 1 . 2 7 12 3 . 6 8 4 11 . 27 . 1 7 . 6 40 13 38 4 2 Attach 87 | . 1 . 3 3 . 1 1 3 5 3 . 2 . 6 2 . 6 1 . . . 4 18 5 12 10 1 Detach 65 | . 2 . . 3 1 1 1 2 1 3 . 1 . 2 2 . 8 1 . 1 . 1 10 4 18 3 . Swap 124 | . 6 . 4 2 8 . . 3 3 1 4 6 . 8 10 . 19 . . 2 . 4 22 2 8 12 . Drop 190 | . 11 . 2 4 7 3 . 6 7 9 . 6 8 4 17 . 15 . 1 8 2 10 23 13 29 5 . Fire 655 | . 35 13 29 36 31 . . 39 20 4 1 29 . 64 22 . 82 5 . . . 9 145 1 30 46 14 Melee 158 | . . . . . 7 . . . . . . . . . . . 16 . . 1 5 46 37 27 16 . 3 Ram . | . . . . . . . . . . . . . . . . . . . . . . . . . . . . Kick 1 | . . . . . . . . . . . . . . . . . . . . . . 1 . . . . . Crush 1 | . . . . . . . . . . . . . . . . . . . . . . . 1 . . . . Escape Stasis . | . . . . . . . . . . . . . . . . . . . . . . . . . . . . Rewire 26 | . . . . . . . . 25 . . . . . . . . . . . . . . 1 . . . . Trap . | . . . . . . . . . . . . . . . . . . . . . . . . . . . . Miscellaneous . | . . . . . . . . . . . . . . . . . . . . . . . . . . . . Route ------- -11/Junkyard -10/Materials (discovered 4 exits: [*Mat x3] / *Min) -10/Mines (discovered 3 exits: [*Mat x2] / *Sub) -10/Subcaves -8/Materials (discovered 2 exits: [*Fac] / *Sto) -8/Storage (discovered 2 exits: [*Fac] / *Rec) -8/Recycling -6/Factory -6/Extension (discovered 3 exits: *Fac x2 / *Cet) -6/Cetus (discovered 2 exits: *Fac / [*Arc]) -5/Factory (discovered 3 exits: *Fac x2 / *Upp) -5/Upper Caves -5/Upper Caves (discovered 2 exits: *Fac / *Zhi) -5/Zhirov -4/Proximity Caves -4/Factory -4/Waste -4/Factory (discovered 3 exits: *Res / *Upp x2) -4/Upper Caves -4/Upper Caves -4/Warlord -3/Proximity Caves -3/Research (discovered 4 exits: *Res / *Arm / Tes x2) -3/Armory (discovered 2 exits: *Res / *Lab) -3/Lab -2/Research (discovered 3 exits: *Acc / *Qua x2) -2/Quarantine (discovered 2 exits: *Acc / *Sec) -2/Section 7 (discovered 1 exit: Acc) History --------- Turn | Location | Event 1 | -11/Junkyard | Discovered new exit (range 0) 1 | -11/Junkyard | Entered Materials 154 | -10/Materials | Discovered new exit (range 16) 309 | -10/Materials | Build established: Mutant 519 | -10/Materials | Discovered new exit (range 6) 559 | -10/Materials | Discovered new exit (range 3) 672 | -10/Materials | Discovered new exit (range 5) 699 | -10/Materials | Identified exit to Mines 803 | -10/Materials | Entered Mines 804 | -10/Mines | Learned location of Storage (-8) 824 | -10/Mines | Learned location of Mines (-9) 824 | -10/Mines | Discovered new exit (range 11) 878 | -10/Mines | Discovered new exit (range 8) 1031 | -10/Mines | Discovered new exit (range 14) 1194 | -10/Mines | Entered Subcaves 1262 | -10/Subcaves | Core integrity fell below 50% 1265 | -10/Subcaves | Shifting Twisted Machinery released Sub. Monowheel 1267 | -10/Subcaves | Shifting Twisted Machinery released Sub. Power Source 1270 | -10/Subcaves | Shifting Twisted Machinery released Flamer 1298 | -10/Subcaves | Core integrity fell below 20% 1326 | -10/Subcaves | Lost 5 parts (1p2n2w) 1455 | -10/Subcaves | Visited 4L-MR0's lab 1479 | -10/Subcaves | Found Flightbrick 1509 | -10/Subcaves | Shifting Twisted Machinery released Sub. Laser 1574 | -10/Subcaves | Discovered new exit (range 12) 1592 | -10/Subcaves | Entered Materials 1592 | -8/Materials | Evolved 4 slots: Power x1, Propulsion x2, Utility x1 1594 | -8/Materials | Attached Flightbrick, gained temporary slots: Utility x3 1692 | -8/Materials | Identified exit to Storage 1722 | -8/Materials | Garrison activated, responded to threat 1947 | -8/Materials | Discovered new exit (range 4) 1959 | -8/Materials | Entered Storage 2166 | -8/Storage | Used back door to open Recycling access 2166 | -8/Storage | Discovered new exit (range 5) 2223 | -8/Storage | Discovered new exit (range 15) 2254 | -8/Storage | Entered Recycling 2257 | -8/Recycling | Found Scrap Engine 2374 | -8/Recycling | Discovered new exit (range 7) 2419 | -8/Recycling | Entered Factory 2419 | -6/Factory | Evolved 4 slots: Propulsion x2, Utility x1, Weapon x1 2507 | -6/Factory | Discovered new exit (range 16) 2515 | -6/Factory | Entered Extension 2622 | -6/Extension | Rescued a captive Derelict 2636 | -6/Extension | Rescued a captive Derelict 2645 | -6/Extension | Rescued A7 2665 | -6/Extension | Rescued a captive Derelict 2671 | -6/Extension | Rescued a captive Derelict 2671 | -6/Extension | Rescued a captive Derelict 2753 | -6/Extension | Rescued a captive Derelict 2753 | -6/Extension | Rescued a captive Derelict 2755 | -6/Extension | Spotted B-75 Beast 2891 | -6/Extension | Spotted B-75 Beast 3007 | -6/Extension | Destroyed B-75 Beast 3023 | -6/Extension | Allies destroyed B-75 Beast 3044 | -6/Extension | Lost 6 parts (1p3n1u1w) 3073 | -6/Extension | Discovered new exit (range 3) 3159 | -6/Extension | Identified exit to Factory 3258 | -6/Extension | Build established: Scavenger-Gunner 3297 | -6/Extension | Discovered new exit (range 16) 3298 | -6/Extension | Discovered exit to Factory (range 15) 3333 | -6/Extension | Entered Cetus 3333 | -6/Cetus | Accompanied by 1 ally (A7) 3338 | -6/Cetus | Acquired a Cetus Manufacturing Module code from A7 3355 | -6/Cetus | Spotted Cetus Guard 3355 | -6/Cetus | Spotted Cetus Guard 3356 | -6/Cetus | Spotted Cetus Guard 3364 | -6/Cetus | Allies destroyed Cetus Guard 3377 | -6/Cetus | Allies destroyed Cetus Guard 3383 | -6/Cetus | Spotted Cetus Guard 3387 | -6/Cetus | Extracted ID and sensor layout for unrecognized location from A7's data core 3395 | -6/Cetus | Destroyed Cetus Guard 3428 | -6/Cetus | System corruption reached 10% 3531 | -6/Cetus | Started Cetus Manufacturing Module 3553 | -6/Cetus | Core integrity fell below 50% 3556 | -6/Cetus | Manufactured an Enhanced Grunt 3579 | -6/Cetus | Discovered new exit (range 16) 3581 | -6/Cetus | Manufactured an Enhanced Grunt 3602 | -6/Cetus | Lost 6 parts (1p2n3w) 3605 | -6/Cetus | Spotted Cetus Guard 3606 | -6/Cetus | Manufactured an Enhanced Grunt 3606 | -6/Cetus | Spotted Cetus Guard 3608 | -6/Cetus | Spotted Cetus Guard 3631 | -6/Cetus | Manufactured an Enhanced Grunt 3656 | -6/Cetus | Manufactured an Enhanced Grunt 3661 | -6/Cetus | Spotted Cetus Guard 3678 | -6/Cetus | Allies destroyed Cetus Guard 3706 | -6/Cetus | Found Prototype Device 3706 | -6/Cetus | Identified Exp. Thermal Shield 3720 | -6/Cetus | Found Exp. Thermal Shield 3746 | -6/Cetus | Discovered exit to Factory (range 15) 3754 | -6/Cetus | Met Revision 17 3788 | -6/Cetus | Entered Factory 3788 | -5/Factory | Accompanied by 3 allies 3788 | -5/Factory | Evolved 2 slots: Utility x2 3916 | -5/Factory | Discovered new exit (range 4) 4081 | -5/Factory | Build established: Scavenger-Mutant 4205 | -5/Factory | Identified exit to DSF 4335 | -5/Factory | Discovered new exit (range 14) 4376 | -5/Factory | Discovered new exit (range 16) 4440 | -5/Factory | Identified exit to Upper Caves 4490 | -5/Factory | Entered Upper Caves 4490 | -5/Upper Caves | Accompanied by 3 allies 4521 | -5/Upper Caves | Learned location of Warlord (-4) 4689 | -5/Upper Caves | Build established: Scavenger-Skirmisher 4700 | -5/Upper Caves | Learned 12 Factory zone layouts 4741 | -5/Upper Caves | Encountered a Warlord checkpoint 4860 | -5/Upper Caves | Discovered new exit (range 19) 4886 | -5/Upper Caves | Identified exit to Upper Caves 4912 | -5/Upper Caves | Entered another Upper Caves area 4912 | -5/Upper Caves | Accompanied by 3 allies 4933 | -5/Upper Caves | Discovered new exit (range 30) 5263 | -5/Upper Caves | Spotted B-75 Beast 5473 | -5/Upper Caves | Destroyed B-75 Beast 5573 | -5/Upper Caves | Identified exit to Factory 5824 | -5/Upper Caves | Discovered new exit (range 19) 5848 | -5/Upper Caves | Identified exit to Zhirov 5859 | -5/Upper Caves | Entered Zhirov 5859 | -5/Zhirov | Accompanied by 1 ally 5859 | -5/Zhirov | Discovered new exit (range 3) 5863 | -5/Zhirov | Identified exit to Proximity Caves 5888 | -5/Zhirov | Met Zhirov 5936 | -5/Zhirov | Learned location of Quarantine (-2) 5936 | -5/Zhirov | Learned location of Testing (-3) 5936 | -5/Zhirov | Learned location of Command (-1) 5952 | -5/Zhirov | Zhirov requested help retrieving the SGEMP Prototype 5983 | -5/Zhirov | Found Alien Artifact 5983 | -5/Zhirov | Identified Integrated Reactor 5983 | -5/Zhirov | Installed Integrated Reactor, increased core energy generation (+10) 6006 | -5/Zhirov | Found Alien Artifact 6115 | -5/Zhirov | Entered Proximity Caves 6115 | -4/Proximity Caves | Accompanied by 1 ally 6179 | -4/Proximity Caves | Found Exp. Thermal Shield 6227 | -4/Proximity Caves | Spotter reported a threat 6357 | -4/Proximity Caves | Spotter reported a threat 6668 | -4/Proximity Caves | Attracted the attention of an 0b10 checkpoint 6746 | -4/Proximity Caves | Lost 7 parts (2p2n2u1w) 6823 | -4/Proximity Caves | Learned 4 Research zone layouts 6837 | -4/Proximity Caves | Spotter reported a threat 6916 | -4/Proximity Caves | Spotter reported a threat 6962 | -4/Proximity Caves | Discovered exit to Factory (range 11) 7148 | -4/Proximity Caves | Build established: Gunner 7193 | -4/Proximity Caves | Received a Behemoth hack from an annoying Tinkerer 7330 | -4/Proximity Caves | Entered Factory 7330 | -4/Factory | Evolved 2 slots: Utility x1, Weapon x1 7449 | -4/Factory | Discovered new exit (range 16) 7580 | -4/Factory | Search patrols dispatched 7679 | -4/Factory | Found Prototype Slashing Weapon 7679 | -4/Factory | Identified Vibroblade 7745 | -4/Factory | Sucked down chute 7745 | -4/Factory | Entered Waste 7746 | -4/Waste | Met a frightened Derelict 7750 | -4/Waste | Spotted C-40 Crusher 7753 | -4/Waste | Spotted C-40 Crusher 7774 | -4/Waste | Spotted C-40 Crusher 7777 | -4/Waste | Spotted C-40 Crusher 7784 | -4/Waste | Discovered new exit (range 16) 7786 | -4/Waste | Spotted C-40 Crusher 7795 | -4/Waste | Entered Factory 8091 | -4/Factory | Identified exit to Upper Caves 8222 | -4/Factory | Garrison activated, responded to threat 8295 | -4/Factory | First assault squad dispatched 8422 | -4/Factory | Discovered new exit (range 14) 8619 | -4/Factory | Lost 7 parts (2p1n1u3w) 8841 | -4/Factory | Lost 3 parts (1n2u) 9046 | -4/Factory | Spotted B-86 Titan 9089 | -4/Factory | Entered Upper Caves 9125 | -4/Upper Caves | Learned location of 1 exit from Research 9127 | -4/Upper Caves | Learned Factory trap positions 9127 | -4/Upper Caves | Learned Extension terminal intel 9208 | -4/Upper Caves | Discovered new exit (range 5) 9244 | -4/Upper Caves | Identified exit to Upper Caves 9245 | -4/Upper Caves | Entered another Upper Caves area 9304 | -4/Upper Caves | Attracted the attention of an 0b10 checkpoint 9337 | -4/Upper Caves | Encountered a Warlord checkpoint 9357 | -4/Upper Caves | Build established: Sprinter 9380 | -4/Upper Caves | Discovered new exit (range 10) 9403 | -4/Upper Caves | Identified exit to Warlord 9403 | -4/Upper Caves | Entered Warlord 9414 | -4/Warlord | System corruption cleaned by Quarantine Array 9487 | -4/Warlord | Found Prototype Special Weapon 9487 | -4/Warlord | Identified RU-N14's Throwing Claymores v3 9514 | -4/Warlord | Met Warlord 9519 | -4/Warlord | Warlord's base attacked by MAIN.C 9530 | -4/Warlord | Found Prototype Processor 9530 | -4/Warlord | Identified Exp. Targeting Computer 9533 | -4/Warlord | Found Prototype Device 9533 | -4/Warlord | Identified Thermal Barrier 9535 | -4/Warlord | Found Prototype Processor 9535 | -4/Warlord | Identified Spectral Analyzer 9552 | -4/Warlord | Found Prototype Energy Gun 9552 | -4/Warlord | Identified Vortex Shotgun 9577 | -4/Warlord | Opened side exit 9626 | -4/Warlord | Discovered new exit (range 14) 9628 | -4/Warlord | Identified exit to Proximity Caves 9629 | -4/Warlord | Entered Proximity Caves 9646 | -3/Proximity Caves | Attracted the attention of an 0b10 checkpoint 9735 | -3/Proximity Caves | Discovered new exit (range 13) 9761 | -3/Proximity Caves | Spotted B-86 Titan 9766 | -3/Proximity Caves | Identified exit to Research 9767 | -3/Proximity Caves | Entered Research 9767 | -3/Research | Evolved 2 slots: Utility x2 9768 | -3/Research | Identified exit to Research 9769 | -3/Research | Identified exit to Testing 9967 | -3/Research | Revision forces began assault on 0b10 9995 | -3/Research | Spotted B-86 Titan 10074 | -3/Research | Met up with Revision 17++ 10120 | -3/Research | Identified exit to Armory 10153 | -3/Research | Build established: Hacker-Scout 10467 | -3/Research | Research terminal network offline 10577 | -3/Research | Build established: Hacker-Assassin 10708 | -3/Research | Spotted Striker 10709 | -3/Research | Spotted Striker 10713 | -3/Research | Destroyed Striker 10752 | -3/Research | Entered Armory 10753 | -3/Armory | Met VL-GR5, who suggested a friendly competition 10874 | -3/Armory | Energy Cycler disabled 10924 | -3/Armory | Fabricated Exp. Heat Sink (x1) 10999 | -3/Armory | Fabricated Assault Drone Bay (x1) 11551 | -3/Armory | Build established: Scavenger-Gunner 11620 | -3/Armory | Lost 5 parts (2n1u2w) 12001 | -3/Armory | Spotted B-86 Titan 12008 | -3/Armory | Befriended a Behemoth using the annoying Tinkerer's hack 12196 | -3/Armory | System corruption reached 10% 12216 | -3/Armory | Lost 5 parts (2p1u2w) 12363 | -3/Armory | Lost 3 parts (1p2u) 12537 | -3/Armory | First assault squad dispatched 12585 | -3/Armory | Discovered exit to Research (range 3) 12622 | -3/Armory | Core integrity fell below 50% 12675 | -3/Armory | Destroyed 9 combat bots 13037 | -3/Armory | Identified Transdimensional Reconstructor 13037 | -3/Armory | Warped through subspace to slip node 13037 | -3/Armory | Discovered new exit (range 1) 13037 | -3/Armory | Identified exit to Lab 13045 | -3/Armory | Entered Lab 13047 | -3/Lab | Discovered exit to Research (range 8) 13059 | -3/Lab | Hidden lab's door opened automatically 13059 | -3/Lab | Sensor layout match revealed 13060 | -3/Lab | Gained access to the hidden lab's interior 13066 | -3/Lab | Unable to decrypt terminal 13066 | -3/Lab | Opened the door to a hidden lab 13068 | -3/Lab | Unable to decrypt terminal 13115 | -3/Lab | Unable to decrypt terminal 13126 | -3/Lab | Found Alien Artifact 13137 | -3/Lab | Found Transdimensional Reconstructor 13153 | -3/Lab | Found Integrated Reactor 13153 | -3/Lab | Installed Integrated Reactor, increased core energy generation (+10) 13164 | -3/Lab | Found Alien Artifact 13191 | -3/Lab | Found Prototype Protection 13191 | -3/Lab | Identified Med. Regenerative Plating 13196 | -3/Lab | Found Prototype Energy Cannon 13196 | -3/Lab | Identified Warp Cannon 13201 | -3/Lab | Found Prototype Energy Cannon 13201 | -3/Lab | Identified Potential Cannon 13233 | -3/Lab | Unable to decrypt terminal 13249 | -3/Lab | Found Prototype Special Weapon 13249 | -3/Lab | Identified Gui. Remote Datajack 13277 | -3/Lab | Unable to decrypt terminal 13279 | -3/Lab | Unable to decrypt terminal 13297 | -3/Lab | Identified Core Expander 13297 | -3/Lab | Installed Core Expander, added new Power slot 13299 | -3/Lab | Identified Core Reset Matrix 13299 | -3/Lab | Used Core Reset Matrix 13312 | -3/Lab | Unable to decrypt terminal 13333 | -3/Lab | Discovered exit to Research (range 15) 13339 | -3/Lab | Detected by scanners 13345 | -3/Lab | Confronted by A5 13397 | -3/Lab | Destroyed A5 13409 | -3/Lab | Found Prototype Hackware 13409 | -3/Lab | Identified Exp. Hacking Suite 13417 | -3/Lab | Found Prototype Hackware 13417 | -3/Lab | Identified Exp. System Shield 13437 | -3/Lab | Found Med. Regenerative Plating 13487 | -3/Lab | Unable to decrypt terminal 13507 | -3/Lab | Found Prototype Hackware 13542 | -3/Lab | Unable to decrypt terminal 13542 | -3/Lab | Disabled Active System Cloaker 13569 | -3/Lab | MAIN.C forces arrive to investigate 13578 | -3/Lab | Entered Research 13578 | -2/Research | Warlord forces began assault on 0b10 13578 | -2/Research | Evolved 2 slots: Utility x2 13599 | -2/Research | Identified Deep Network Scanner 13600 | -2/Research | Identified exit to Quarantine 13688 | -2/Research | Research machine network offline 13791 | -2/Research | Spotted B-90 Cyclops 13902 | -2/Research | Spotted Striker 13997 | -2/Research | Lost 10 parts (2p2n4u2w) 13999 | -2/Research | Build established: Wizard-Gunner 14133 | -2/Research | Borebot progress halted 14227 | -2/Research | Discovered new exit (range 16) 14278 | -2/Research | Borebot progress halted 14322 | -2/Research | Found Prototype Processor 14322 | -2/Research | Identified Exp. Melee Analysis Suite 14376 | -2/Research | Build established: Wizard-Mutant 14542 | -2/Research | Borebot progress halted 14834 | -2/Research | Found Prototype Processor 14834 | -2/Research | Identified Exp. Core Analyzer 14846 | -2/Research | Found Exp. Core Analyzer 15024 | -2/Research | Entered Quarantine 15025 | -2/Quarantine | Detected hypermatrix surge 15025 | -2/Quarantine | Sensed 11 artifacts in vicinity 15042 | -2/Quarantine | Build established: Wizard-Gunner 15106 | -2/Quarantine | Found Subatomic Replicator 15248 | -2/Quarantine | Found Hpw. Transdimensional Reconstructor 15402 | -2/Quarantine | Cryocooling Duct disabled 15417 | -2/Quarantine | Ambient heat levels rising (+20) 15417 | -2/Quarantine | Non-combat units ordered to evacuate 15528 | -2/Quarantine | Identified exit to Access 15563 | -2/Quarantine | Intercept squad dispatched 15573 | -2/Quarantine | Spotted Tracker 15574 | -2/Quarantine | Spotted Tracker 15578 | -2/Quarantine | Destroyed Tracker 15591 | -2/Quarantine | Destroyed Tracker 15597 | -2/Quarantine | Spotted Combat Programmer 15597 | -2/Quarantine | Spotted Combat Programmer 15606 | -2/Quarantine | Destroyed Combat Programmer 15614 | -2/Quarantine | System corruption reached 10% 15615 | -2/Quarantine | Destroyed Combat Programmer 15647 | -2/Quarantine | Found Prototype Energy Gun 16187 | -2/Quarantine | Spotted Fortress 16218 | -2/Quarantine | Intercept squad dispatched 16233 | -2/Quarantine | Spotted Tracker 16234 | -2/Quarantine | Spotted Tracker 16234 | -2/Quarantine | Spotted Tracker 16244 | -2/Quarantine | Destroyed Tracker 16246 | -2/Quarantine | Core integrity fell below 50% 16246 | -2/Quarantine | Destroyed Tracker 16252 | -2/Quarantine | Destroyed Tracker 16270 | -2/Quarantine | Spotted Combat Programmer 16321 | -2/Quarantine | System corruption reached 30% 16334 | -2/Quarantine | Core integrity fell below 20% 16338 | -2/Quarantine | Discovered new exit (range 6) 16341 | -2/Quarantine | Identified exit to Section 7 16342 | -2/Quarantine | Entered Section 7 16343 | -2/Section 7 | Sensed 19 artifacts in vicinity 16370 | -2/Section 7 | Lost 16 parts (3p3n7u3w) 16619 | -2/Section 7 | Build established: Hacker-Mutant 16736 | -2/Section 7 | Destroyed by G-73 Enforcer with Heavy Laser Last Messages --------------- 16477_ U-05 Engineer builds a Wall. 16492_ R4%FPU0MUQY9Q0UHWIAF:VM1WQHNK 16508_ System corrupted: Energy discharge (-33). 16524_ System corrupted: Matter fused (-9). 16555_ System corrupted: Matter fused (-8). 16575_ System corrupted: Component data lost. 16592_ System corrupted: Heat flow error (+113). 16607_ System corrupted: Matter fused (-7). 16659_ System corrupted: IFF burst signal emitted. 16682_ System corrupted: Energy discharge (-21). 16683_ System corrupted: Enh. Nova Cannon failed to cycle. 16693_ U-05 Engineer builds a Wall. 16701_ System corrupted: Energy discharge (-31). 16705_ G-73 Enforcer destroyed. 16707_ Acquired 89 matter. 16709_ Acquired Unknown Energy Gun. 16709_ Identified Phase Gun. 16716_ OYI2UBB,WY9BAEA:QYIEPJ 16726_ System corrupted: Enh. Nova Cannon failed to cycle. 16734_ System corrupted: Component data lost. Map ----- +----------------------------------------------------+ | ###??# #?????????????????????????????????? | | ""#??# #?????????????????????????????????? | | ""#??# #?????????????????????????????????? | | T"#??# """ """ #?????????????????????????????????? | | ""#??# " " " " #?????????????????????????????????? | | ""#??# """ """ #?????????????????????????????????? | | ###??# #??????? ????????????????????????? | | #????# #?????? #???????????????????????? | | ################ ???? #???????????????????????? | | ?? ????????????????????????? | | "" ??????????????????????????? | | ?????????????????? | | gg ?????????????????? | | ###+#+###########+######### g #?????????????????? | | ## #?# #?????????????????? | | ## #?# #?????????????????? | | ## """ """ #?# #?????????????????? | | ## """Y""" #?# #?????????????????? | | """ ## """ """ #?# u #?????????????????? | | "!" ## #?# #?????????????????? | | """"" ## """ """ #?# #?????????????????? | | """"" ## """ """ #?# #?????????????????? | | ## """ """ #?# #??????Y??????????? | | "# ### A #?????????????????? | | ## ;## #?????????????????? | | ## #@# #?????????????????? | | #############"""T"""###"##g #?????????????????? | | ????????????#########?### # #?????????????????? | | ?????????????????????????#" #?????????????????? | | ??????????????????????????# #?????????????????? | | ??????????????????????????# #?????????????????? | | ??????????????????????????# #?????????????????? | | ??????????????????????????# #?????????????????? | | ??????????????????????????# ????????????????? | | ??????????????????????????# ???????????????? | | ??????????????????????????# ??????????????? | | ??????????????????????????# ? ??????????????? | | ??????????????????????????######??#??????????????? | | ??????????????????????????######?????????????????? | | ??????????????????????????# ?????????????????? | | ??????????????????????????# ?????????????????? | | ??????????????????######### ?????????????????? | | ?????????????????????????????????????????????????? | | ?????????????????????????????????????????????????? | | ?????????????????????????????????????????????????? | | ?????????????????????????????????????????????????? | | ?????????????????????????????????????????????????? | | ?????????????????????????????????????????????????? | | ?????????????????????????????????????????????????? | | ?????????????????????????????????????????????????? | +----------------------------------------------------+ Best States ------------- Heat Dissipation 106 Coolant Potential 100 Energy Generation 89 Energy Capacity 850 Matter Stores 300 Matter Capacity 300 Sight Range 24 Robot Scan Range 18 Terrain Scan Range 18 Terrain Scan Density 85 Jamming Range 16 Additional Mass Support 6 Corruption Block 7 Armor Coverage 900 Resistance: KI 30 Resistance: TH 30 Resistance: EX 50 Core Shielding 30 Propulsion Shielding 66 Weapon Shielding 66 Weapon Cycling 20 Evasion (%) 75 Targeting Accuracy 12 Target Analysis 8 Core Analysis 12 Armor Integrity Analysis 30 Recoil Reduction 6 Matter Filtering 30 Salvage Targeting 1 Offensive Hacking 65 Defensive Hacking 26 Authchip Count 1 Item Schematics ----------------- None Robot Schematics ------------------ None Fabricated ------------ Exp. Heat Sink | x1 | -3/Armory | Authchip Assault Drone Bay | x1 | -3/Armory | Authchip Alien Tech Used ----------------- Integrated Reactor Transdimensional Reconstructor Core Expander Core Reset Matrix Achievements -------------- Anyone Home? More Power To You Project G-00 Revising The Future Revolutionary Research Woof! Challenges ------------ None Game ------ Seed SpacefoldTractorRegenerator Manual? 0 Play Time 05:41:27 Cumulative 213.7 hours Start 2023.07.06 @ 20:23:31 End 2023.07.09 @ 20:59:57 Sessions 11 Manual Loads 0 Difficulty Rogue Special Mode None Game No. 75 Rogue 75 Adventurer 0 Explorer 0 Win Type - Total 5 Types 4/0/0/1/0/0/0/0/0 Lore% 58 Gallery% 71 Achievement% 55 Wizard Run 0 Options --------- ASCII 0 Keyboard 1 Movement Vi Keybinds 0 Fullscreen 1 Font 18/SmallcapsGlow Map View 76x50 Tactical HUD 1 Map Filters NONE Filters NONE Steam 1 RUN: dbe38267-a747-4397-b1c0-e72923dc36c9